[Event "AI Cup Div-1 2023"]
[Site "Online"]
[Date "2023.09.25"]
[Round "1.1"]
[White "Carlsen, Magnus"]
[Black "Nakamura, Hikaru"]
[Result "1-0"]
[Annotator "TA"]
[ECO "A30"]
[WhiteElo "2839"]
[BlackElo "2780"]
[PlyCount "91"]
[EventDate "2023.09.18"]
[EventType "k.o."]
[EventCountry "NET"]
[SourceTitle "playchess.com"]
[Source "ChessBase"]
[SourceQuality "1"]
[TimeControl "900+3"]

{[%evp 24,91,43,48,19,14,16,12,62,57,39,55,52,59,58,50,48,61,49,55,57,62,55,53,45,51,116,116,122,41,75,77,87,54,67,54,34,45,77,63,58,71,104,95,93,60,100,75,75,51,76,22,89,89,112,23,25,25,259,213,435,435,433,418,3317,403,29978,29978,29975,29975]} 1. Nf3 {[%emt 0:00:19]} Nf6 {[%emt 0:00:24]} 2. c4 {[%emt 0:00:02]} b6 {[%emt 0:00:13]} 3. g3 {[%emt 0:01:00]} Bb7 {[%emt 0:00:02]} 4. Bg2 {[%emt 0:00:00]} e6 {[%emt 0:00:04]} 5. O-O {[%emt 0:00:03]} Be7 {[%emt 0:00:15]} 6. Nc3 {[%emt 0:00:05]} O-O {[%emt 0:00:14]} 7. Re1 {[%emt 0:00:12]} d5 {[%emt 0:00:59]} 8. cxd5 {[%emt 0:00:02]} Nxd5 {[%emt 0:00:05]} 9. e4 {[%emt 0:00:04]} Nxc3 {[%emt 0:00:09]} 10. bxc3 {[%emt 0:00:00]} c5 {[%emt 0:00:01]} 11. d4 {[%emt 0:00:03]} cxd4 {[%emt 0:00:36]} 12. cxd4 {[%emt 0:00:02]} Nc6 {[%emt 0:00:07]} 13. Bb2 {[%emt 0:01:30]} Na5 {[%emt 0:00:49] A30: Symmetrical English: Double Fianchetto and Hedgehog.} 14. Rc1 $5 {[%emt 0:00:53][%cal Od4d5][%mdl 4] Dodges Nc4 An interesting side line.} (14. d5 $5 {[%cal Ra1c1]}) 14... Rc8 {[%emt 0:00:07] Dodges d5} 15. Qd3 {[%emt 0:01:54] [#]} Qd7 $146 {[%emt 0:01:45] [#]} (15... Rxc1 $11 16. Rxc1 Qd6) ({Predecessor:} 15... Qd6 16. d5 Rxc1 17. Bxc1 exd5 18. exd5 Bxd5 19. Ng5 Bxg5 20. Bxg5 Qb4 21. Bd2 Bc4 22. Bxb4 Bxd3 23. Bxf8 Kxf8 {1-0 Kengis,E (2570)-Meijers,V (2463) Warsaw AIG Life rapid 2002 (4)}) 16. d5 $1 $14 {[%emt 0:01:08]} Rxc1 {[%emt 0:00:54]} 17. Rxc1 $40 {[%emt 0:01:27][%mdl 128] White is up to no good.} exd5 {[%emt 0:01:01]} 18. Ne5 {[%emt 0:00:24][%csl LRd5,LRd7]} Qa4 {[%emt 0:02:52][%cal Rd5e4]} 19. exd5 {[%emt 0:00:01]} Qxa2 {[%emt 0:00:05]} 20. Qc3 {[%emt 0:00:02]} Bf6 {[%emt 0:00:02]} 21. Ra1 {[%emt 0:00:03]} Qb3 {[%emt 0:00:01]} 22. Qxb3 {[%emt 0:00:00]} Nxb3 {[%emt 0:00:00]} 23. Rxa7 {[%emt 0:00:01]} Nc5 {[%emt 0:00:03]} 24. f4 {[%emt 0:01:28]} Ra8 {[%emt 0:03:43]} ({Black should play} 24... Rd8 $14) 25. Rxa8+ $16 {[%emt 0:00:01]} Bxa8 {[%emt 0:00:00] [#]} 26. Kf2 {[%emt 0:00:35]} (26. Ba3 $1 $16) 26... Kf8 {[%emt 0:00:37]} 27. Ke3 {[%emt 0:00:09]} Ke8 {[%emt 0:00:15]} 28. Ba3 {[%emt 0:01:12]} Be7 {[%emt 0:00:18]} 29. Nc4 {[%emt 0:01:07]} b5 {[%emt 0:00:01]} 30. Ne5 {[%emt 0:00:32][%cal Od5d6]} Bb7 {[%emt 0:00:07]} 31. Nc6 {[%emt 0:00:28] White is more active.} Bxc6 {[%emt 0:00:04]} 32. dxc6 $14 {[%emt 0:00:03][%mdl 4096] Endgame KBB-KBN} Na6 {[%emt 0:00:00]} 33. Bb2 {[%emt 0:00:10]} f6 {[%emt 0:00:02]} 34. Ke4 {[%emt 0:00:13]} Bd6 {[%emt 0:00:10]} 35. h4 {[%emt 0:00:23]} Ke7 {[%emt 0:00:09]} 36. h5 {[%emt 0:00:03][%cal Oh5h6] Hoping for h6!} (36. Bf1 $5 {[%cal Rf1b5]}) 36... g6 {[%emt 0:00:04]} 37. h6 {[%emt 0:00:17]} (37. Bf1 $16) 37... Ke6 {[%emt 0:00:12]} (37... Nb4 $11 {remains equal.}) 38. Bf1 $16 {[%emt 0:00:27]} Nc7 {[%emt 0:00:05] [#]} 39. g4 {[%emt 0:00:11]} (39. Kf3 $1 $16) 39... f5+ $11 {[%emt 0:00:02]} 40. Kf3 {[%emt 0:00:02]} Bf8 $2 {[%emt 0:00:09] A mistake that costs the game.} (40... Nd5 $11 {and Black stays safe.}) 41. Bd3 {[%emt 0:00:07] Be5 would be deadly.} Bd6 {[%emt 0:00:12]} (41... fxg4+ {was worth a try.} 42. Kxg4 Bxh6) 42. gxf5+ $18 {[%emt 0:00:02]} gxf5 {[%emt 0:00:00]} 43. Bb1 {[%emt 0:00:01]} Bf8 {[%emt 0:00:02]} (43... b4 $142 44. Bc2 Bf8) 44. Be5 {[%emt 0:00:07]} (44. Ba2+ $142 Ke7 45. Ba3+ Ke8 46. Bxf8 Kxf8 47. Bb1) 44... Bd6 {[%emt 0:00:06]} (44... Ne8 $18 45. Ba2+ Ke7) 45. Bxd6 {[%emt 0:00:08][%mdl 64] Deflection} Kxd6 {[%emt 0:00:01]} 46. Bxf5 {[%emt 0:00:01] Weighted Error Value: White=0.38/Black=0.61} 1-0

[Event "AI Cup Div-1 2023"]
[Site "Online"]
[Date "2023.09.25"]
[Round "1.1"]
[White "Firouzja, Alireza"]
[Black "Vachier-Lagrave, Maxime"]
[Result "1/2-1/2"]
[Annotator "TA"]
[ECO "B97"]
[WhiteElo "2777"]
[BlackElo "2727"]
[PlyCount "77"]
[EventDate "2023.09.18"]
[EventType "k.o."]
[EventCountry "NET"]
[SourceTitle "playchess.com"]
[Source "ChessBase"]
[SourceQuality "1"]
[TimeControl "900+3"]

{[%evp 18,77,0,0,0,0,0,0,0,0,0,0,0,0,0,0,0,0,0,0,0,0,0,0,0,0,0,0,0,0,0,0,0,0,0,0,16,0,0,0,8,0,0,0,0,0,0,0,0,0,0,0,0,0,0,0,0,0,0,0,0,0]} 1. e4 {[%emt 0:00:05]} c5 {[%emt 0:00:05]} 2. Nf3 {[%emt 0:00:01]} d6 {[%emt 0:00:01]} 3. d4 {[%emt 0:00:03]} cxd4 {[%emt 0:00:00]} 4. Nxd4 {[%emt 0:00:01]} Nf6 {[%emt 0:00:00]} 5. Nc3 {[%emt 0:00:00]} a6 {[%emt 0:00:01]} 6. Bg5 {[%emt 0:00:09]} e6 {[%emt 0:00:04]} 7. f4 {[%emt 0:00:02]} Qb6 {[%emt 0:00:05]} 8. Nb3 {[%emt 0:00:02]} Nbd7 {[%emt 0:00:06]} 9. Qe2 {[%emt 0:00:03]} Qc7 {[%emt 0:00:08]} 10. O-O-O {[%emt 0:00:02] The position is equal.} b5 {[%emt 0:00:09] B97: Sicilian Najdorf: Poisoned Pawn.} 11. a3 {[%emt 0:00:01]} Be7 {[%emt 0:00:43]} 12. Kb1 {[%emt 0:00:07]} Rb8 {[%emt 0:00:03]} 13. Qe1 {[%emt 0:00:05]} Bb7 {[%emt 0:00:23]} 14. Bd3 {[%emt 0:00:10]} h6 {[%emt 0:01:45]} 15. Bh4 {[%emt 0:00:05]} Nc5 {[%emt 0:00:01]} 16. Nxc5 {[%emt 0:03:38]} dxc5 {[%emt 0:00:00]} 17. e5 {[%emt 0:00:22]} Nd5 {[%emt 0:00:02]} 18. Nxd5 {[%emt 0:00:33]} Bxd5 {[%emt 0:00:01]} 19. Bxe7 {[%emt 0:00:17]} Qxe7 {[%emt 0:00:00]} 20. Be4 {[%emt 0:00:09] [#]} Bxe4 $146 {[%emt 0:00:01]} ({Predecessor:} 20... b4 21. a4 b3 22. cxb3 Rxb3 23. Rxd5 exd5 24. Bxd5 Rb4 25. e6 fxe6 26. Bxe6 Qf6 {½-½ Nepomniachtchi,I (2789)-Giri,A (2776) Carlsen Inv KO rapid 2021 (3.23)}) 21. Qxe4 {[%emt 0:00:01] [#] Black must now prevent Qc6+.} O-O $1 {[%emt 0:00:02]} 22. Rd6 {[%emt 0:00:04]} b4 {[%emt 0:00:01]} 23. a4 {[%emt 0:00:32]} b3 {[%emt 0:00:21]} 24. c3 {[%emt 0:00:24] Repels Rb4} Rfd8 {[%emt 0:01:21]} 25. Rhd1 {[%emt 0:00:57]} ({Don't play} 25. Rxa6 Rd5 26. Rc1 Qd8 $15) 25... Rxd6 {[%emt 0:04:06]} 26. exd6 $11 {[%emt 0:00:06][%mdl 4096] Endgame KQR-KQR} Qd7 {[%emt 0:00:01]} 27. g4 {[%emt 0:00:56]} Rb6 {[%emt 0:01:22]} 28. Qe5 {[%emt 0:01:20]} Rc6 {[%emt 0:01:55] [#] Hoping for ...f6.} 29. g5 {[%emt 0:02:22]} hxg5 {[%emt 0:00:02]} 30. fxg5 {[%emt 0:00:01]} Rc8 {[%emt 0:00:03]} 31. Qe4 {[%emt 0:00:31]} c4 {[%emt 0:00:53]} 32. g6 {[%emt 0:00:37]} fxg6 {[%emt 0:00:02]} 33. Qxg6 {[%emt 0:01:23]} Rf8 {[%emt 0:00:17][%cal Od7d6] Threatens to win with ...Qxd6!} 34. Qg4 {[%emt 0:00:31]} Qxa4 {[%emt 0:00:33]} 35. Qxe6+ {[%emt 0:00:02]} Kh8 {[%emt 0:00:01]} 36. Qh3+ {[%emt 0:00:09]} Kg8 {[%emt 0:00:01]} 37. Qe6+ {[%emt 0:00:02]} Kh8 {[%emt 0:00:04]} 38. Qh3+ {[%emt 0:00:08]} Kg8 {[%emt 0:00:01] ( -> ...Qa2+)} 39. Qe6+ {[%emt 0:00:01] A balanced but interesting game.   Weighted Error Value: White=0.01 (flawless) /Black=0.01 (flawless)} 1/2-1/2

[Event "AI Cup Div-1 2023"]
[Site "Online"]
[Date "2023.09.25"]
[Round "1.1"]
[White "Nepomniachtchi, Ian"]
[Black "Giri, Anish"]
[Result "1-0"]
[Annotator "TA"]
[ECO "B52"]
[WhiteElo "2771"]
[BlackElo "2760"]
[PlyCount "87"]
[EventDate "2023.09.18"]
[EventType "k.o."]
[EventCountry "NET"]
[SourceTitle "playchess.com"]
[Source "ChessBase"]
[SourceQuality "1"]
[TimeControl "900+3"]

{[%evp 17,87,11,27,12,16,-5,-1,0,29,12,13,13,17,14,12,21,22,21,31,43,38,2,60,58,77,45,84,88,79,84,193,157,177,125,116,81,128,152,164,136,341,341,288,281,286,266,247,147,427,72,31,15,15,15,604,604,604,604,604,604,596,574,570,566,12837,12837,12837,12838,12837,12838,12837,12836]} 1. e4 {[%emt 0:00:06]} c5 {[%emt 0:00:05]} 2. Nf3 {[%emt 0:00:02]} d6 {[%emt 0:00:00]} 3. Bb5+ {[%emt 0:00:01]} Bd7 {[%emt 0:00:07]} 4. Bxd7+ {[%emt 0:00:01]} Qxd7 {[%emt 0:00:01]} 5. c4 {[%emt 0:00:02]} Nf6 {[%emt 0:00:09]} 6. Nc3 {[%emt 0:00:02]} Nc6 {[%emt 0:00:02]} 7. d4 {[%emt 0:00:01]} cxd4 {[%emt 0:00:00]} 8. Nxd4 {[%emt 0:00:00]} g6 {[%emt 0:00:01]} 9. O-O {[%emt 0:00:01]} Bg7 {[%emt 0:00:12][%cal Of6e4]} 10. Nf3 {[%emt 0:00:03] B52: Sicilian: Moscow Variation with 3...Bd7.} O-O {[%emt 0:00:13]} 11. Bd2 $5 {[%emt 0:00:03][%mdl 4] Exploring less charted territory.} a6 {[%emt 0:02:00]} 12. Qe2 {[%emt 0:00:16] [#] The position is equal.} Rab8 $146 {[%emt 0:00:20]} ({Predecessor:} 12... e6 13. Rfd1 Rfd8 14. Bg5 h6 15. Bf4 Qe7 16. h3 Rac8 17. Rac1 Kh7 18. b3 Ne8 {1-0 Antipov,M (2589)-Zhigalko,A (2545) Wch Rapid St Petersburg 2018 (4)}) 13. Rab1 {[%emt 0:00:45]} b5 {[%emt 0:01:05]} 14. cxb5 {[%emt 0:00:02]} axb5 {[%emt 0:00:00]} 15. Nxb5 {[%emt 0:00:01]} Nxe4 {[%emt 0:00:28][%mdl 64] Deflection} 16. Qxe4 {[%emt 0:00:48]} Rxb5 {[%emt 0:00:01]} 17. b4 {[%emt 0:00:01] Hoping for a4.} Ra8 {[%emt 0:00:26]} 18. Rfc1 {[%emt 0:00:03]} d5 {[%emt 0:00:02]} 19. Qc2 {[%emt 0:00:03]} Nd4 {[%emt 0:00:13]} (19... Nd8 $1 $11) 20. Nxd4 $14 {[%emt 0:00:02]} Bxd4 {[%emt 0:00:00]} 21. a4 {[%emt 0:00:03]} Rbb8 {[%emt 0:00:05]} 22. b5 {[%emt 0:00:20]} Bb6 {[%emt 0:01:41]} 23. Ra1 $36 {[%emt 0:00:42][%mdl 2048] Black is under strong pressure.} Ba5 {[%emt 0:02:14]} (23... Qd8 $16) 24. Bxa5 $18 {[%emt 0:00:55]} Rxa5 {[%emt 0:00:01]} 25. h3 {[%emt 0:00:01]} (25. Qc3 $1 $18 {[%cal Rc3a5]} Qd8 26. Qb4) 25... d4 $16 {[%emt 0:00:53]} 26. Qb3 {[%emt 0:00:25]} Qa7 {[%emt 0:02:03]} (26... d3 $142) 27. Rab1 $1 {[%emt 0:00:22] White is more active.} Qb6 {[%emt 0:01:42]} 28. Rc4 {[%emt 0:00:03]} Rd8 $2 {[%emt 0:00:07]} (28... Raa8 $16) 29. Rc6 $18 {[%emt 0:00:07]} Qb7 {[%emt 0:00:05]} 30. Rd1 {[%emt 0:00:19]} Raa8 {[%emt 0:00:12]} 31. Qc4 {[%emt 0:00:11]} Qd7 {[%emt 0:01:22]} 32. Rd3 {[%emt 0:00:02]} (32. Qb4 $1 $18) 32... e5 $2 {[%emt 0:00:16][%mdl 8192]} (32... Kg7 $16 {was worth a try.} 33. f4 (33. Rf3 Qd5 $14) 33... Ra7) 33. Rc7 $2 {[%emt 0:00:36]} (33. b6 $18 {and the rest is easy.}) 33... Rdc8 $16 {[%emt 0:00:04]} 34. Rxd7 {[%emt 0:00:36]} Rxc4 $14 {[%emt 0:00:02][%mdl 4096] Endgame KRR-KRR} 35. Rf3 {[%emt 0:00:00] b6 would be deadly.} f5 $2 {[%emt 0:00:08][%mdl 8192] [#]} (35... d3 $11) 36. Rb3 $1 $18 {[%emt 0:00:22][%cal Bf3b3,Bb3b6,Bb6d6,Bd6d8,Bd8b8][%mdl 32] White is clearly winning.} Rcxa4 {[%emt 0:00:10]} 37. b6 {[%emt 0:00:02] Dodges R8a7} Rb8 {[%emt 0:00:02]} 38. b7 {[%emt 0:00:26] aiming for Rc7.} Rc4 {[%emt 0:00:05] Prevents Rc7.} 39. Rb6 {[%emt 0:00:02]} d3 {[%emt 0:00:08] [#]} 40. Rbd6 $1 {[%emt 0:00:04]} ({Weaker is} 40. Rxd3 Rc1+ 41. Kh2 Rc7 $16) 40... Rb4 {[%emt 0:00:10]} 41. Rd8+ {[%emt 0:00:04]} ({Not} 41. Rxd3 R8xb7 42. f3 h5 $17) 41... Rxd8 {[%emt 0:00:00]} 42. Rxd8+ {[%emt 0:00:00]} Kf7 {[%emt 0:00:02]} 43. b8=Q {[%emt 0:00:02]} ({Worse is} 43. b8=B Rb1+ 44. Kh2 d2 45. Rxd2 Rxb8 $15) 43... Rxb8 {[%emt 0:00:02]} 44. Rxb8 {[%emt 0:00:00] Weighted Error Value: White=0.30/Black=0.40} 1-0

[Event "AI Cup Div-1 2023"]
[Site "Online"]
[Date "2023.09.25"]
[Round "1.1"]
[White "Lazavik, Denis"]
[Black "Mamedyarov, Shakhriyar"]
[Result "1/2-1/2"]
[Annotator "TA"]
[ECO "D71"]
[WhiteElo "2560"]
[BlackElo "2734"]
[PlyCount "48"]
[EventDate "2023.09.18"]
[EventType "k.o."]
[EventCountry "NET"]
[SourceTitle "playchess.com"]
[Source "ChessBase"]
[SourceQuality "1"]
[TimeControl "900+3"]

{[%evp 9,48,27,34,42,53,22,15,0,-2,-6,1,0,11,10,35,37,35,31,23,29,43,35,36,38,29,9,9,3,6,0,0,0,0,0,0,0,0,0,0,0,0]} 1. d4 {[%emt 0:00:04]} Nf6 {[%emt 0:00:07]} 2. c4 {[%emt 0:00:02]} g6 {[%emt 0:00:01]} 3. g3 {[%emt 0:00:26]} d5 {[%emt 0:00:03]} 4. cxd5 {[%emt 0:00:12]} c6 {[%emt 0:00:03]} 5. dxc6 {[%emt 0:00:43]} Nxc6 {[%emt 0:00:02]} 6. Nf3 {[%emt 0:00:04] D71: Fianchetto Grünfeld: 3 g3 d5 sidelines and 5 cxd5 (without Nf3).} e5 {[%emt 0:00:02][%cal Re5d4]} 7. e3 {[%emt 0:04:26] [#]} ({Reject} 7. dxe5 Qxd1+ 8. Kxd1 Ng4 $11) (7. Nxe5 Nxe5 8. dxe5 Qxd1+ 9. Kxd1 Ng4 $11) 7... Bb4+ $146 {[%emt 0:00:08]} ({Predecessor:} 7... exd4 8. exd4 Bb4+ 9. Nc3 O-O 10. Bg2 Re8+ 11. Kf1 Bf5 12. Bg5 Qd6 13. Kg1 Ne4 14. Nxe4 Bxe4 {½-½ Wang,Y (2669)-Erdos,V (2621) PRO League Stage rapid 2020 (4)}) 8. Bd2 {[%emt 0:01:03]} Bxd2+ {[%emt 0:00:37]} ({Don't do} 8... exd4 9. Bxb4 Nxb4 10. Nxd4 $16 (10. Qxd4 $2 {too greedy.} Nc2+ 11. Kd1 Nxd4 $19)) 9. Qxd2 {[%emt 0:00:04]} exd4 {[%emt 0:01:17]} 10. Nxd4 {[%emt 0:00:17]} Qd5 {[%emt 0:00:22]} 11. f3 {[%emt 0:01:26]} Nxd4 {[%emt 0:01:45]} (11... O-O $5 {[%cal Rc6d4]} 12. Nxc6 Qxc6 $11) 12. Qxd4 {[%emt 0:00:04]} Qxd4 {[%emt 0:00:41]} 13. exd4 {[%emt 0:00:03]} Be6 {[%emt 0:00:19] Prevents Bc4.} 14. Nc3 {[%emt 0:00:14]} O-O-O {[%emt 0:00:04]} 15. Rd1 {[%emt 0:00:18]} Kb8 {[%emt 0:00:54]} 16. Kf2 {[%emt 0:00:14]} Rd6 {[%emt 0:00:25]} 17. Be2 {[%emt 0:01:28]} Rhd8 {[%emt 0:00:11] The position is equal.} 18. Rd2 {[%emt 0:01:44]} Rxd4 {[%emt 0:00:09]} 19. Rxd4 {[%emt 0:00:02]} Rxd4 {[%emt 0:00:00]} 20. Rd1 {[%emt 0:00:00] Inhibits Rd2.} Rxd1 {[%emt 0:00:05]} 21. Bxd1 {[%emt 0:00:02]} Kc7 {[%emt 0:00:16]} 22. Ke3 {[%emt 0:00:03]} Nd5+ {[%emt 0:00:05]} 23. Nxd5+ {[%emt 0:00:04]} Bxd5 {[%emt 0:00:00]} 24. a3 {[%emt 0:00:02]} Kd6 {[%emt 0:00:11] Weighted Error Value: White=0.07 (flawless) /Black=0.03 (flawless)} 1/2-1/2

[Event "AI Cup Div-1 2023"]
[Site "Online"]
[Date "2023.09.25"]
[Round "1.2"]
[White "Nakamura, Hikaru"]
[Black "Carlsen, Magnus"]
[Result "1/2-1/2"]
[Annotator "TA"]
[ECO "D00"]
[WhiteElo "2780"]
[BlackElo "2839"]
[PlyCount "75"]
[EventDate "2023.09.18"]
[EventType "k.o."]
[EventCountry "NET"]
[SourceTitle "playchess.com"]
[Source "ChessBase"]
[SourceQuality "1"]
[TimeControl "900+3"]

{[%evp 9,75,-43,-52,-69,22,27,24,36,25,26,25,24,19,17,37,20,38,4,20,11,39,35,41,17,22,18,20,-77,-60,-43,-62,-168,-110,-98,0,0,0,-68,0,-41,-39,-40,-41,-34,110,114,357,365,559,559,547,287,370,332,327,230,230,230,230,230,230,230,230,230,270,230,245,230]} 1. d4 {[%emt 0:00:03]} d5 {[%emt 0:00:14]} 2. Nc3 {[%emt 0:00:01]} Nf6 {[%emt 0:00:28]} 3. Bf4 {[%emt 0:00:03]} c5 {[%emt 0:00:01]} 4. e4 {[%emt 0:00:39]} Nxe4 {[%emt 0:00:11]} 5. Nb5 {[%emt 0:01:38]} Na6 {[%emt 0:01:05]} 6. f3 {[%emt 0:00:02] [#] D00: 1 d4 d5: Unusual lines.} Nd6 $146 {[%emt 0:02:31]} (6... Nf6 $1 $15) ({Predecessor:} 6... Nf6 7. dxc5 Nh5 8. Qd2 Nxf4 9. Qxf4 e6 10. Qg3 Be7 11. Qxg7 Bh4+ 12. g3 Qf6 {1-0 Boguszlavszkij,J (2232)-Vincze,R (2121) Zalakaros op 30th 2011 (2)}) 7. dxc5 $11 {[%emt 0:00:03]} Nxb5 {[%emt 0:00:03]} 8. Bxb5+ {[%emt 0:00:09] White has an edge.} Bd7 {[%emt 0:00:04]} 9. Bxa6 {[%emt 0:00:30]} Qa5+ $1 {[%emt 0:00:02] [#]} 10. b4 $1 {[%emt 0:00:03]} Qxa6 {[%emt 0:00:04]} 11. Qxd5 {[%emt 0:00:01]} e6 {[%emt 0:00:15] Black is weak on the dark squares} 12. Qb3 {[%emt 0:00:30]} Be7 {[%emt 0:01:52]} 13. a4 {[%emt 0:02:06]} O-O {[%emt 0:00:23][%cal Oe6e5]} (13... Bf6 $5 {[%cal Rf6a1]} 14. Ra3 e5 $11) 14. Be5 {[%emt 0:00:25]} Qc6 {[%emt 0:01:22]} (14... f6 $5 {[%cal Rf6e5]} 15. Bb2 Be8 $11) 15. Ne2 {[%emt 0:01:21]} a5 {[%emt 0:00:19]} 16. c3 {[%emt 0:02:24]} (16. Nd4 $5 {[%cal Rd4c6]} Qd5 17. Qxd5 exd5 18. c3 $14) 16... axb4 {[%emt 0:00:05]} 17. cxb4 {[%emt 0:00:01]} Rxa4 {[%emt 0:00:18]} 18. Rd1 {[%emt 0:00:01]} (18. Qxa4 $11 Qxa4 19. Rxa4 Bxa4 20. Kf2) 18... Qb5 $17 {[%emt 0:01:15]} 19. Rb1 $1 {[%emt 0:00:04]} (19. Nc3 Rxb4 20. Nxb5 Rxb3 21. Rxd7 Rxb5 $17) 19... Qa6 {[%emt 0:00:53]} 20. Bb2 {[%emt 0:00:07] Prevents Ra3} (20. Kf2 $15) 20... b6 {[%emt 0:00:53]} (20... Rc8 $19 21. h4 e5) 21. Nc3 {[%emt 0:00:59]} bxc5 {[%emt 0:00:01]} (21... Qd3 $17 22. Qd1 Qe3+ 23. Qe2 Qxe2+ 24. Kxe2 Rxb4 25. cxb6 Rxb6) 22. Nxa4 $11 {[%emt 0:01:27]} Bxa4 {[%emt 0:00:02]} 23. Qc3 {[%emt 0:00:40]} ({White should play} 23. b5 $1 $11 Bh4+ 24. g3) 23... Bf6 {[%emt 0:00:17]} (23... f6 $15 24. bxc5 Rb8) 24. Qe3 {[%emt 0:00:05]} Bh4+ {[%emt 0:01:10] A strong pair of Bishops.} 25. g3 {[%emt 0:00:02] Strongly threatening Bxg7.} Be7 $1 {[%emt 0:00:04]} 26. bxc5 {[%emt 0:01:06]} Rb8 {[%emt 0:00:22]} (26... Qa5+ 27. Bc3 Qxc5 28. Qxc5 Bxc5 29. Ke2 $16) (26... Rd8 $15 27. Be5 (27. Kf2 $2 Rd3 $19) 27... Be8) 27. Kf2 $16 {[%emt 0:00:52][%cal Be1f2,Bf2g2,Bg2h3][%mdl 32] Threatens to win with Qe5.} ({But not} 27. Qe5 Qa5+ 28. Kf1 Qb5+ 29. Kg2 Bf6 $11) 27... Qc4 $2 {[%emt 0:00:46] This costs Black the game.} (27... Bc6 $16 {was worth a try.}) 28. Rhc1 $18 {[%emt 0:00:31]} Bc2 {[%emt 0:00:02] [#]} (28... Qd5 $142 29. Qd4 f6 30. Qxd5 (30. Qxa4 $2 {too greedy.} Qd2+ 31. Kg1 Rxb2 $19) 30... exd5) 29. Qd2 $1 {[%emt 0:00:07]} ({Inferior is} 29. Qe5 Qxc5+ 30. Ke2 Qxe5+ 31. Bxe5 Rxb1 $17) 29... Qxc5+ {[%emt 0:00:26]} 30. Kg2 {[%emt 0:00:01] Black must now prevent Ba3.} Bxb1 {[%emt 0:00:04]} 31. Rxc5 {[%emt 0:00:03]} Bxc5 {[%emt 0:00:00]} 32. Be5 {[%emt 0:00:15]} Ra8 {[%emt 0:00:11]} 33. Qc1 {[%emt 0:00:09][%csl LRb1,LRc5]} Ra2+ {[%emt 0:00:01]} 34. Kh3 {[%emt 0:00:00]} Bc2 {[%emt 0:00:02]} 35. Bb2 {[%emt 0:00:02]} Rxb2 {[%emt 0:00:33]} (35... Bf5+ $2 36. g4 Bxg4+ 37. fxg4 $18) 36. Qxb2 {[%emt 0:00:00]} Bg6 {[%emt 0:00:01]} 37. Qb8+ {[%emt 0:00:02]} Bf8 {[%emt 0:00:00]} 38. Kg2 {[%emt 0:00:04] Weighted Error Value: White=0.26 (precise) /Black=0.43} 1/2-1/2